[Event "Live Chess"]
[Site "Chess.com"]
[Date "2024.06.02"]
[Round "-"]
[White "Frankie_Badacsonyi"]
[Black "ACM42"]
[Result "1-0"]
[WhiteElo "2379"]
[BlackElo "2204"]
[TimeControl "300"]
[EndTime "6:39:04 PDT"]
[Termination "Frankie_Badacsonyi won by resignation"]

1. d4 {[%clk 0:04:57.2]} 1... Nf6 {[%clk 0:04:58.8]} 2. Bg5 {[%clk 0:04:56.7]}
2... Ne4 {[%clk 0:04:57.5]} 3. Bf4 {[%clk 0:04:55.6]} 3... d5 {[%clk 0:04:57]}
4. f3 {[%clk 0:04:53.3]} 4... Nd6 {[%clk 0:04:55.9]} 5. Nc3 {[%clk 0:04:50]}
5... c6 {[%clk 0:04:53.8]} 6. e3 {[%clk 0:04:48.8]} 6... g6 {[%clk 0:04:52.7]}
7. Bd3 {[%clk 0:04:47.3]} 7... Bg7 {[%clk 0:04:51.8]} 8. Nge2 {[%clk 0:04:46]}
8... Nd7 {[%clk 0:04:48.6]} 9. O-O {[%clk 0:04:45]} 9... e5 {[%clk 0:04:47.2]}
10. dxe5 {[%clk 0:04:44.4]} 10... Nxe5 {[%clk 0:04:46.3]} 11. e4 {[%clk
0:04:41.8]} 11... dxe4 {[%clk 0:04:40]} 12. Nxe4 {[%clk 0:04:39.5]} 12... Nxe4
{[%clk 0:04:36.8]} 13. Bxe4 {[%clk 0:04:39.4]} 13... O-O {[%clk 0:04:33.7]} 14.
Qxd8 {[%clk 0:04:34.6]} 14... Rxd8 {[%clk 0:04:32.3]} 15. Rfd1 {[%clk
0:04:34.2]} 15... Be6 {[%clk 0:04:31.3]} 16. Nd4 {[%clk 0:04:27.3]} 16... Bc4
{[%clk 0:04:20]} 17. b3 {[%clk 0:04:15.8]} 17... Ba6 {[%clk 0:04:18.2]} 18. c3
{[%clk 0:04:09.6]} 18... h6 {[%clk 0:03:58.5]} 19. Be3 {[%clk 0:03:53.7]} 19...
f5 {[%clk 0:03:45.5]} 20. Bc2 {[%clk 0:03:52.2]} 20... Kf7 {[%clk 0:03:22.7]}
21. Kf2 {[%clk 0:03:47.8]} 21... b6 {[%clk 0:03:06.2]} 22. Rac1 {[%clk
0:03:41.3]} 22... c5 {[%clk 0:03:04.7]} 23. Ne2 {[%clk 0:03:40]} 23... Nd3+
{[%clk 0:02:57.5]} 24. Bxd3 {[%clk 0:03:38.2]} 24... Bxd3 {[%clk 0:02:55.4]} 25.
c4 {[%clk 0:03:30.8]} 25... g5 {[%clk 0:02:51.9]} 26. g3 {[%clk 0:03:23.8]}
26... Rd7 {[%clk 0:02:39.1]} 27. Nc3 {[%clk 0:03:19.9]} 27... f4 {[%clk
0:02:31.9]} 28. gxf4 {[%clk 0:03:11.1]} 28... gxf4 {[%clk 0:02:30.5]} 29. Bxf4
{[%clk 0:03:09]} 29... Bf5 {[%clk 0:02:02.7]} 30. Rxd7+ {[%clk 0:03:05.4]} 30...
Bxd7 {[%clk 0:02:01.9]} 31. Nd5 {[%clk 0:03:03.7]} 31... Re8 {[%clk 0:01:58]}
32. Re1 {[%clk 0:02:55.7]} 32... Bd4+ {[%clk 0:01:56.3]} 33. Be3 {[%clk
0:02:54.8]} 33... Bc3 {[%clk 0:01:52.8]} 34. Rd1 {[%clk 0:02:44.5]} 34... Be5
{[%clk 0:01:33.6]} 35. Nxb6 {[%clk 0:02:38.5]} 35... Bc6 {[%clk 0:01:27.7]} 36.
Nd5 {[%clk 0:02:34]} 36... Bxh2 {[%clk 0:01:26.2]} 37. Rh1 {[%clk 0:02:32.5]}
37... Be5 {[%clk 0:01:16.3]} 38. Rxh6 {[%clk 0:02:30]} 38... Ba8 {[%clk
0:01:08.4]} 39. Bxc5 {[%clk 0:02:24.4]} 39... Kg7 {[%clk 0:01:04.1]} 40. Rh1
{[%clk 0:02:20.7]} 40... a5 {[%clk 0:01:01.1]} 41. Rd1 {[%clk 0:02:19.4]} 41...
Rc8 {[%clk 0:00:58]} 42. Bd4 {[%clk 0:02:18.6]} 42... Bxd4+ {[%clk 0:00:54.5]}
43. Rxd4 {[%clk 0:02:18.5]} 43... Bc6 {[%clk 0:00:52.3]} 44. Rg4+ {[%clk
0:02:16.8]} 44... Kf7 {[%clk 0:00:51]} 45. Rf4+ {[%clk 0:02:13.6]} 45... Kg7
{[%clk 0:00:47.7]} 46. Ke2 {[%clk 0:02:12.3]} 46... a4 {[%clk 0:00:46.7]} 47.
Kd3 {[%clk 0:02:10.1]} 47... Rb8 {[%clk 0:00:44.4]} 48. Kc3 {[%clk 0:02:06.5]}
48... Rc8 {[%clk 0:00:36.9]} 49. Ne7 {[%clk 0:02:04.5]} 49... Rc7 {[%clk
0:00:31.3]} 50. Nxc6 {[%clk 0:02:04]} 50... Rxc6 {[%clk 0:00:30.5]} 51. b4
{[%clk 0:02:03.6]} 51... Re6 {[%clk 0:00:26.6]} 52. b5 {[%clk 0:02:02.1]} 52...
Re3+ {[%clk 0:00:25.2]} 53. Kb4 {[%clk 0:02:01.8]} 53... a3 {[%clk 0:00:22.9]}
54. b6 {[%clk 0:02:00.9]} 54... Re1 {[%clk 0:00:21.9]} 55. Kxa3 {[%clk
0:01:59.8]} 55... Rb1 {[%clk 0:00:21.2]} 56. c5 {[%clk 0:01:59.2]} 1-0

[Event "Live Chess"]
[Site "Chess.com"]
[Date "2024.06.02"]
[Round "-"]
[White "mrsmarple1968"]
[Black "upoe610"]
[Result "1-0"]
[WhiteElo "1740"]
[BlackElo "2138"]
[TimeControl "300"]
[EndTime "6:39:17 PDT"]
[Termination "mrsmarple1968 won by resignation"]

1. e4 {[%clk 0:04:55.6]} 1... e5 {[%clk 0:04:59.3]} 2. Bc4 {[%clk 0:04:51.5]}
2... Nf6 {[%clk 0:04:58.1]} 3. d3 {[%clk 0:04:49.7]} 3... Nc6 {[%clk 0:04:56.8]}
4. Nf3 {[%clk 0:04:48.2]} 4... Bc5 {[%clk 0:04:55.1]} 5. O-O {[%clk 0:04:45.9]}
5... a6 {[%clk 0:04:54.2]} 6. c3 {[%clk 0:04:41.5]} 6... Bb6 {[%clk 0:04:50.8]}
7. Bb3 {[%clk 0:04:37.6]} 7... d6 {[%clk 0:04:50.2]} 8. Re1 {[%clk 0:04:35.3]}
8... h6 {[%clk 0:04:49.6]} 9. Nbd2 {[%clk 0:04:29]} 9... O-O {[%clk 0:04:48.7]}
10. Nf1 {[%clk 0:04:27.3]} 10... Ng4 {[%clk 0:04:47.5]} 11. Re2 {[%clk
0:04:25.2]} 11... Kh8 {[%clk 0:04:46.6]} 12. h3 {[%clk 0:04:21.1]} 12... f5
{[%clk 0:04:42.8]} 13. hxg4 {[%clk 0:04:15.3]} 13... fxg4 {[%clk 0:04:42]} 14.
N3h2 {[%clk 0:04:12]} 14... g3 {[%clk 0:04:40.8]} 15. Nxg3 {[%clk 0:04:07.4]}
15... Qh4 {[%clk 0:04:37.9]} 16. Be3 {[%clk 0:03:50.1]} 16... Bxe3 {[%clk
0:04:33.9]} 17. Rxe3 {[%clk 0:03:48.3]} 17... Bd7 {[%clk 0:04:33.8]} 18. Nf3
{[%clk 0:03:27.9]} 18... Qf6 {[%clk 0:04:27.5]} 19. d4 {[%clk 0:03:21.8]} 19...
Ne7 {[%clk 0:04:25.5]} 20. dxe5 {[%clk 0:03:15]} 20... Qg6 {[%clk 0:04:16.7]}
21. exd6 {[%clk 0:03:11.1]} 21... cxd6 {[%clk 0:04:15.4]} 22. e5 {[%clk
0:03:00.8]} 22... Bg4 {[%clk 0:04:13.8]} 23. exd6 {[%clk 0:02:55.7]} 23... Nf5
{[%clk 0:04:10.4]} 24. Nxf5 {[%clk 0:02:36.7]} 24... Rxf5 {[%clk 0:04:08.7]} 25.
Bc2 {[%clk 0:02:34.5]} 25... Raf8 {[%clk 0:04:06.8]} 26. Bxf5 {[%clk 0:02:32.3]}
26... Rxf5 {[%clk 0:04:06.7]} 27. d7 {[%clk 0:02:22.8]} 27... Bh3 {[%clk
0:04:04.1]} 28. g3 {[%clk 0:02:15.5]} 28... Rf8 {[%clk 0:04:01.8]} 29. d8=Q
{[%clk 0:02:11.6]} 29... Rxd8 {[%clk 0:03:59.9]} 30. Qxd8+ {[%clk 0:02:11.1]}
30... Kh7 {[%clk 0:03:59.8]} 31. Qd3 {[%clk 0:02:07.5]} 31... Bf5 {[%clk
0:03:58.3]} 32. Qd4 {[%clk 0:01:53.7]} 32... Qh5 {[%clk 0:03:56.8]} 33. Re5
{[%clk 0:01:49]} 33... Qxf3 {[%clk 0:03:54.1]} 34. Qf4 {[%clk 0:01:43.1]} 34...
Qxf4 {[%clk 0:03:49.2]} 35. gxf4 {[%clk 0:01:41.1]} 35... Bg6 {[%clk 0:03:49.1]}
1-0

[Event "Live Chess"]
[Site "Chess.com"]
[Date "2024.06.02"]
[Round "-"]
[White "KyryloPoluliakh"]
[Black "LL220284LL"]
[Result "0-1"]
[WhiteElo "1536"]
[BlackElo "2479"]
[TimeControl "300"]
[EndTime "6:39:23 PDT"]
[Termination "LL220284LL won by resignation"]

1. c4 {[%clk 0:04:56.8]} 1... e5 {[%clk 0:04:58.1]} 2. Nc3 {[%clk 0:04:56.2]}
2... Nf6 {[%clk 0:04:56.2]} 3. g3 {[%clk 0:04:54.7]} 3... c6 {[%clk 0:04:55]} 4.
Bg2 {[%clk 0:04:53.6]} 4... d5 {[%clk 0:04:54.6]} 5. cxd5 {[%clk 0:04:51.9]}
5... cxd5 {[%clk 0:04:54.5]} 6. d4 {[%clk 0:04:50.2]} 6... e4 {[%clk 0:04:53.4]}
7. e3 {[%clk 0:04:47.6]} 7... Nc6 {[%clk 0:04:52.6]} 8. Nge2 {[%clk 0:04:46.2]}
8... Bd6 {[%clk 0:04:50.5]} 9. O-O {[%clk 0:04:41.6]} 9... h5 {[%clk 0:04:50]}
10. h4 {[%clk 0:04:38.6]} 10... Ng4 {[%clk 0:04:48.7]} 11. f3 {[%clk 0:04:35.7]}
11... exf3 {[%clk 0:04:47.3]} 12. Bxf3 {[%clk 0:04:35.2]} 12... Ne7 {[%clk
0:04:41.7]} 13. Nf4 {[%clk 0:04:30]} 13... Nf5 {[%clk 0:04:30.5]} 14. Ncxd5
{[%clk 0:04:19.1]} 14... Nxg3 {[%clk 0:04:27]} 15. Re1 {[%clk 0:04:10.6]} 15...
Qxh4 {[%clk 0:04:24.7]} 16. Bxg4 {[%clk 0:04:05.1]} 16... hxg4 {[%clk
0:04:16.5]} 17. Ng2 {[%clk 0:04:02]} 17... Qh1+ {[%clk 0:04:11.2]} 18. Kf2
{[%clk 0:04:01.3]} 18... Ne4+ {[%clk 0:04:10.6]} 19. Ke2 {[%clk 0:03:56.4]}
19... Qxg2+ {[%clk 0:04:09.6]} 20. Kd3 {[%clk 0:03:55.7]} 20... Nf2+ {[%clk
0:04:09]} 21. Kc4 {[%clk 0:03:53.2]} 21... Nxd1 {[%clk 0:04:07.7]} 0-1

[Event "Live Chess"]
[Site "Chess.com"]
[Date "2024.06.02"]
[Round "-"]
[White "JanMur7"]
[Black "Plimsol"]
[Result "1-0"]
[WhiteElo "2297"]
[BlackElo "2343"]
[TimeControl "300"]
[EndTime "6:39:35 PDT"]
[Termination "JanMur7 won on time"]

1. c4 {[%clk 0:04:58.4]} 1... e6 {[%clk 0:04:58.6]} 2. Nc3 {[%clk 0:04:56.2]}
2... b6 {[%clk 0:04:54.9]} 3. Nf3 {[%clk 0:04:54.3]} 3... Bb7 {[%clk 0:04:53.6]}
4. g3 {[%clk 0:04:53.7]} 4... Nf6 {[%clk 0:04:51.8]} 5. Bg2 {[%clk 0:04:52.9]}
5... c5 {[%clk 0:04:51.4]} 6. O-O {[%clk 0:04:52]} 6... a6 {[%clk 0:04:51]} 7.
d4 {[%clk 0:04:51.1]} 7... cxd4 {[%clk 0:04:50.4]} 8. Nxd4 {[%clk 0:04:50.8]}
8... Bxg2 {[%clk 0:04:48.7]} 9. Kxg2 {[%clk 0:04:50.7]} 9... Qc8 {[%clk
0:04:48.2]} 10. b3 {[%clk 0:04:43.7]} 10... Be7 {[%clk 0:04:44]} 11. f3 {[%clk
0:04:28.9]} 11... Qb7 {[%clk 0:04:41]} 12. e4 {[%clk 0:04:20]} 12... d6 {[%clk
0:04:39.8]} 13. Be3 {[%clk 0:04:08.1]} 13... Nbd7 {[%clk 0:04:38]} 14. Qd2
{[%clk 0:04:05.4]} 14... O-O {[%clk 0:04:36.4]} 15. Rad1 {[%clk 0:04:01.5]}
15... Rac8 {[%clk 0:04:35.1]} 16. Nde2 {[%clk 0:03:56.5]} 16... Rfd8 {[%clk
0:04:33.7]} 17. Qc2 {[%clk 0:03:54]} 17... b5 {[%clk 0:04:32]} 18. cxb5 {[%clk
0:03:46.5]} 18... axb5 {[%clk 0:04:31.9]} 19. b4 {[%clk 0:03:44.9]} 19... Ne5
{[%clk 0:04:29.3]} 20. Bf2 {[%clk 0:03:23.3]} 20... Ra8 {[%clk 0:04:23.4]} 21.
Qb3 {[%clk 0:03:15.7]} 21... Rdc8 {[%clk 0:04:18.4]} 22. Nd4 {[%clk 0:03:02]}
22... d5 {[%clk 0:03:59.4]} 23. exd5 {[%clk 0:02:56.1]} 23... Nxd5 {[%clk
0:03:58.3]} 24. Nxd5 {[%clk 0:02:47.3]} 24... exd5 {[%clk 0:03:57.3]} 25. Nf5
{[%clk 0:02:43.9]} 25... Nc4 {[%clk 0:03:52.9]} 26. Nxe7+ {[%clk 0:02:35]} 26...
Qxe7 {[%clk 0:03:51.8]} 27. Rxd5 {[%clk 0:02:34.6]} 27... Ra3 {[%clk 0:03:34.5]}
28. Qd1 {[%clk 0:02:12.7]} 28... Rxa2 {[%clk 0:03:27.4]} 29. Re1 {[%clk
0:02:11.4]} 29... Qf6 {[%clk 0:03:01.9]} 30. Rxb5 {[%clk 0:02:03.9]} 30... Qb2
{[%clk 0:02:45.8]} 31. Kh3 {[%clk 0:01:34.9]} 31... Qxf2 {[%clk 0:02:41.3]} 32.
Rc5 {[%clk 0:01:32.7]} 32... Qxh2+ {[%clk 0:02:37]} 33. Kg4 {[%clk 0:01:31.7]}
33... h5+ {[%clk 0:02:21.4]} 34. Kf4 {[%clk 0:01:27.7]} 34... Rxc5 {[%clk
0:02:15]} 35. Re8+ {[%clk 0:01:22.9]} 35... Kh7 {[%clk 0:02:12.9]} 36. bxc5
{[%clk 0:01:22]} 36... Qd2+ {[%clk 0:02:02.2]} 37. Qxd2 {[%clk 0:01:20.3]} 37...
Rxd2 {[%clk 0:02:01.7]} 38. c6 {[%clk 0:01:15.9]} 38... Rc2 {[%clk 0:01:59]} 39.
c7 {[%clk 0:01:12.2]} 39... Nd6 {[%clk 0:01:57.9]} 40. Rd8 {[%clk 0:01:10.6]}
40... Rxc7 {[%clk 0:01:39.1]} 41. Rxd6 {[%clk 0:01:09.7]} 41... f6 {[%clk
0:01:38.6]} 42. Ke3 {[%clk 0:01:07.4]} 42... Kg6 {[%clk 0:01:37.8]} 43. Rd5
{[%clk 0:01:05.1]} 43... Rc2 {[%clk 0:01:36.1]} 44. g4 {[%clk 0:00:59.1]} 44...
h4 {[%clk 0:01:23.7]} 45. Rh5 {[%clk 0:00:57.1]} 45... Rh2 {[%clk 0:01:22.1]}
46. Kf4 {[%clk 0:00:56.2]} 46... Kf7 {[%clk 0:01:20.2]} 47. g5 {[%clk
0:00:33.1]} 47... Kg6 {[%clk 0:01:18.4]} 48. gxf6 {[%clk 0:00:29.7]} 48... gxf6
{[%clk 0:01:06.6]} 49. Rh8 {[%clk 0:00:28.7]} 49... Rh1 {[%clk 0:00:57.2]} 50.
Kg4 {[%clk 0:00:27.1]} 50... f5+ {[%clk 0:00:53.7]} 51. Kf4 {[%clk 0:00:26]}
51... h3 {[%clk 0:00:27]} 52. Rh4 {[%clk 0:00:24.7]} 52... h2 {[%clk 0:00:19]}
53. Rh3 {[%clk 0:00:23.9]} 53... Kf6 {[%clk 0:00:14.5]} 54. Rh6+ {[%clk
0:00:20.3]} 54... Kg7 {[%clk 0:00:13.4]} 55. Rh5 {[%clk 0:00:19.4]} 55... Kg6
{[%clk 0:00:13]} 56. Rh8 {[%clk 0:00:18.9]} 56... Kf6 {[%clk 0:00:07.9]} 57. Rh3
{[%clk 0:00:15.9]} 57... Ke6 {[%clk 0:00:06.7]} 58. Rh6+ {[%clk 0:00:12.5]}
58... Kf7 {[%clk 0:00:05.6]} 59. Kxf5 {[%clk 0:00:12]} 59... Rf1 {[%clk
0:00:04.5]} 60. Rxh2 {[%clk 0:00:11.1]} 60... Rxf3+ {[%clk 0:00:03.4]} 61. Ke4
{[%clk 0:00:11]} 61... Rf6 {[%clk 0:00:02.1]} 62. Rh7+ {[%clk 0:00:10.5]} 62...
Ke6 {[%clk 0:00:01.7]} 63. Rh1 {[%clk 0:00:10.1]} 63... Rg6 {[%clk 0:00:01.1]}
64. Re1 {[%clk 0:00:09.7]} 64... Rg4+ {[%clk 0:00:00.4]} 65. Kf3+ {[%clk
0:00:09.6]} 1-0

[Event "Live Chess"]
[Site "Chess.com"]
[Date "2024.06.02"]
[Round "-"]
[White "nyclone"]
[Black "Ferrarifan27"]
[Result "0-1"]
[WhiteElo "1147"]
[BlackElo "2141"]
[TimeControl "300"]
[EndTime "6:39:39 PDT"]
[Termination "Ferrarifan27 won by resignation"]

1. e4 {[%clk 0:04:58.2]} 1... e5 {[%clk 0:04:58.6]} 2. Nc3 {[%clk 0:04:57.5]}
2... Nc6 {[%clk 0:04:57.5]} 3. Bc4 {[%clk 0:04:56.5]} 3... Bc5 {[%clk
0:04:55.8]} 4. Qg4 {[%clk 0:04:55.2]} 4... g6 {[%clk 0:04:54]} 5. Qf3 {[%clk
0:04:52.1]} 5... Nf6 {[%clk 0:04:50.7]} 6. Nd5 {[%clk 0:04:36]} 6... Nxd5 {[%clk
0:04:47.6]} 7. Bxd5 {[%clk 0:04:34.5]} 7... O-O {[%clk 0:04:46]} 8. d3 {[%clk
0:04:20.9]} 8... Nd4 {[%clk 0:04:44.5]} 9. Qd1 {[%clk 0:04:02.3]} 9... Qf6
{[%clk 0:04:36]} 10. Nf3 {[%clk 0:03:50.9]} 10... Nxf3+ {[%clk 0:04:33.5]} 11.
gxf3 {[%clk 0:03:49]} 11... c6 {[%clk 0:04:31.4]} 12. Bb3 {[%clk 0:03:46.8]}
12... d6 {[%clk 0:04:29.3]} 13. Be3 {[%clk 0:03:43.4]} 13... Bxe3 {[%clk
0:04:26.5]} 14. fxe3 {[%clk 0:03:43.3]} 14... Bh3 {[%clk 0:04:24.1]} 15. Rg1
{[%clk 0:03:33.6]} 15... Rad8 {[%clk 0:04:11.4]} 16. Qe2 {[%clk 0:03:31.6]}
16... d5 {[%clk 0:04:08.6]} 17. O-O-O {[%clk 0:03:28.3]} 17... Be6 {[%clk
0:04:00.4]} 18. Rg3 {[%clk 0:03:14]} 18... a5 {[%clk 0:03:49.4]} 19. a3 {[%clk
0:03:07.1]} 19... dxe4 {[%clk 0:03:43.6]} 20. Bxe6 {[%clk 0:03:01]} 20... exf3
{[%clk 0:03:42.5]} 21. Bxf7+ {[%clk 0:02:56]} 21... Qxf7 {[%clk 0:03:41.5]} 22.
Qf2 {[%clk 0:02:54.7]} 22... Rd6 {[%clk 0:03:36.3]} 23. Rf1 {[%clk 0:02:46.1]}
23... Rf6 {[%clk 0:03:35]} 24. h4 {[%clk 0:02:11]} 24... Qa2 {[%clk 0:03:32.6]}
25. c4 {[%clk 0:02:04.9]} 25... b5 {[%clk 0:03:27.6]} 26. h5 {[%clk 0:01:56.5]}
26... bxc4 {[%clk 0:03:26.1]} 27. hxg6 {[%clk 0:01:52.2]} 27... hxg6 {[%clk
0:03:24.2]} 28. Rxf3 {[%clk 0:01:18.2]} 28... Rxf3 {[%clk 0:03:20.8]} 29. Qxf3
{[%clk 0:01:08.4]} 29... Rxf3 {[%clk 0:03:20.7]} 30. Rxf3 {[%clk 0:01:07.4]}
30... cxd3 {[%clk 0:03:19.4]} 31. e4 {[%clk 0:01:05.2]} 31... Qa1+ {[%clk
0:03:15.8]} 32. Kd2 {[%clk 0:01:04.1]} 32... Qxb2+ {[%clk 0:03:14.9]} 33. Kxd3
{[%clk 0:01:03.2]} 33... Qxa3+ {[%clk 0:03:14]} 34. Ke2 {[%clk 0:01:02.5]} 34...
Qxf3+ {[%clk 0:03:09.6]} 35. Kxf3 {[%clk 0:01:01.4]} 35... Kf7 {[%clk
0:03:08.6]} 0-1

[Event "Live Chess"]
[Site "Chess.com"]
[Date "2024.06.02"]
[Round "-"]
[White "OxonChess"]
[Black "Grace6363"]
[Result "1/2-1/2"]
[WhiteElo "1853"]
[BlackElo "1137"]
[TimeControl "300"]
[EndTime "6:39:48 PDT"]
[Termination "Game drawn by repetition"]

1. Nf3 {[%clk 0:04:56.9]} 1... c5 {[%clk 0:04:54.4]} 2. c4 {[%clk 0:04:55.8]}
2... Nc6 {[%clk 0:04:53.8]} 3. g3 {[%clk 0:04:54.5]} 3... d5 {[%clk 0:04:50.7]}
4. cxd5 {[%clk 0:04:52.9]} 4... Qxd5 {[%clk 0:04:48.1]} 5. Nc3 {[%clk
0:04:51.9]} 5... Qd7 {[%clk 0:04:45.3]} 6. Bg2 {[%clk 0:04:51]} 6... e6 {[%clk
0:04:41.8]} 7. O-O {[%clk 0:04:49.8]} 7... Nf6 {[%clk 0:04:40.7]} 8. b3 {[%clk
0:04:46.2]} 8... a6 {[%clk 0:04:40]} 9. Bb2 {[%clk 0:04:45.3]} 9... b5 {[%clk
0:04:38.6]} 10. Rc1 {[%clk 0:04:38.8]} 10... Bb7 {[%clk 0:04:36.7]} 11. d3
{[%clk 0:04:37.8]} 11... Be7 {[%clk 0:04:35.4]} 12. Qc2 {[%clk 0:04:36.9]} 12...
Rd8 {[%clk 0:04:34.3]} 13. Rfd1 {[%clk 0:04:32.9]} 13... O-O {[%clk 0:04:30.4]}
14. Qb1 {[%clk 0:04:30.7]} 14... Nd4 {[%clk 0:04:27.2]} 15. Nxd4 {[%clk
0:04:15.5]} 15... Bxg2 {[%clk 0:04:23.1]} 16. Kxg2 {[%clk 0:04:05.2]} 16... cxd4
{[%clk 0:04:22.5]} 17. Ne4 {[%clk 0:04:03.3]} 17... Nxe4 {[%clk 0:04:21.2]} 18.
dxe4 {[%clk 0:04:02.2]} 18... e5 {[%clk 0:04:16.4]} 19. Qd3 {[%clk 0:03:54.4]}
19... Qg4 {[%clk 0:04:11.4]} 20. Rc6 {[%clk 0:03:44.1]} 20... Rd6 {[%clk
0:04:05.5]} 21. Rdc1 {[%clk 0:03:41.9]} 21... Rfd8 {[%clk 0:04:00.3]} 22. Rc7
{[%clk 0:03:34.4]} 22... R6d7 {[%clk 0:03:57.4]} 23. R7c6 {[%clk 0:03:31]} 23...
Rd6 {[%clk 0:03:56.5]} 24. R1c2 {[%clk 0:03:20.7]} 24... R8d7 {[%clk 0:03:52.5]}
25. Ba3 {[%clk 0:03:12.8]} 25... Rxc6 {[%clk 0:03:49.2]} 26. Rxc6 {[%clk
0:03:11.4]} 26... Bxa3 {[%clk 0:03:47.6]} 27. Rc8+ {[%clk 0:03:09.8]} 27... Bf8
{[%clk 0:03:44.4]} 28. Qc2 {[%clk 0:03:06]} 28... Rd6 {[%clk 0:03:35.3]} 29. Qc7
{[%clk 0:02:59.7]} 29... Qd7 {[%clk 0:03:30.2]} 30. Qb8 {[%clk 0:02:57.9]} 30...
Qe7 {[%clk 0:03:24.7]} 31. Qa8 {[%clk 0:02:48.4]} 31... h6 {[%clk 0:03:22.9]}
32. Qb8 {[%clk 0:02:45.1]} 32... g6 {[%clk 0:03:19.7]} 33. Re8 {[%clk
0:02:43.8]} 33... Rb6 {[%clk 0:02:47.9]} 34. Rxf8+ {[%clk 0:02:37.8]} 34... Qxf8
{[%clk 0:02:38.5]} 35. Qxb6 {[%clk 0:02:36.3]} 35... Qa8 {[%clk 0:02:31.5]} 36.
Qd6 {[%clk 0:02:34.3]} 36... Qxe4+ {[%clk 0:02:30]} 37. Kh3 {[%clk 0:02:29.5]}
37... Qxe2 {[%clk 0:02:24]} 38. Qxa6 {[%clk 0:02:25.2]} 38... Qxf2 {[%clk
0:02:22.5]} 39. Qxb5 {[%clk 0:02:22.2]} 39... Qxa2 {[%clk 0:02:19.7]} 40. Qe8+
{[%clk 0:02:18.3]} 40... Kg7 {[%clk 0:02:14.6]} 41. Qxe5+ {[%clk 0:02:17.2]}
41... Kg8 {[%clk 0:02:10.7]} 42. Qe8+ {[%clk 0:02:14.2]} 42... Kg7 {[%clk
0:02:09.6]} 43. Qe5+ {[%clk 0:02:13.1]} 43... Kg8 {[%clk 0:02:08.9]} 44. Qe8+
{[%clk 0:02:12.2]} 44... Kg7 {[%clk 0:02:08.5]} 45. Qe5+ {[%clk 0:02:11.3]}
1/2-1/2

[Event "Live Chess"]
[Site "Chess.com"]
[Date "2024.06.02"]
[Round "-"]
[White "r0ad_t0-gm"]
[Black "nigelst"]
[Result "1-0"]
[WhiteElo "2306"]
[BlackElo "1724"]
[TimeControl "300"]
[EndTime "6:39:49 PDT"]
[Termination "r0ad_t0-gm won - game abandoned"]

1. Nf3 {[%clk 0:04:58.9]} 1... Nf6 {[%clk 0:04:58.3]} 2. g3 {[%clk 0:04:57.6]}
2... e6 {[%clk 0:04:56.3]} 3. Bg2 {[%clk 0:04:56.4]} 3... c5 {[%clk 0:04:54.9]}
4. O-O {[%clk 0:04:56.3]} 4... Nc6 {[%clk 0:04:53.1]} 5. d3 {[%clk 0:04:56.2]}
5... b6 {[%clk 0:04:51.8]} 6. Nbd2 {[%clk 0:04:56.1]} 6... Bb7 {[%clk
0:04:50.5]} 7. e4 {[%clk 0:04:56]} 7... d6 {[%clk 0:04:46.2]} 8. Re1 {[%clk
0:04:55.2]} 8... Be7 {[%clk 0:04:44.3]} 9. c3 {[%clk 0:04:54]} 9... O-O {[%clk
0:04:39.1]} 10. d4 {[%clk 0:04:52.6]} 10... cxd4 {[%clk 0:04:37.6]} 11. cxd4
{[%clk 0:04:52.5]} 11... Rc8 {[%clk 0:04:32.6]} 12. a3 {[%clk 0:04:49]} 12...
Nb8 {[%clk 0:04:31]} 13. e5 {[%clk 0:04:33.3]} 13... dxe5 {[%clk 0:04:25.1]} 14.
dxe5 {[%clk 0:04:33.2]} 14... Nd5 {[%clk 0:04:21.9]} 15. Ne4 {[%clk 0:04:30.8]}
15... Nc6 {[%clk 0:04:18.7]} 16. Bg5 {[%clk 0:04:22.8]} 16... Bxg5 {[%clk
0:04:15.3]} 17. Nexg5 {[%clk 0:04:22.7]} 17... h6 {[%clk 0:04:11.7]} 18. Ne4
{[%clk 0:04:21.8]} 18... Nce7 {[%clk 0:04:02.8]} 19. Nd6 {[%clk 0:04:16.5]}
19... Rc7 {[%clk 0:04:00.3]} 20. Rc1 {[%clk 0:04:14.6]} 20... Nc8 {[%clk
0:03:52.2]} 21. Nxb7 {[%clk 0:04:03.3]} 21... Rxb7 {[%clk 0:03:50]} 22. Qe2
{[%clk 0:03:54.6]} 22... Qd7 {[%clk 0:03:47.7]} 23. Red1 {[%clk 0:03:53.1]}
23... Nce7 {[%clk 0:03:44.1]} 24. Nd4 {[%clk 0:03:49.6]} 24... Rc8 {[%clk
0:03:39.1]} 25. Rxc8+ {[%clk 0:03:42.3]} 25... Qxc8 {[%clk 0:03:36.8]} 26. Nb5
{[%clk 0:03:40.7]} 26... a6 {[%clk 0:03:29.3]} 27. Nd6 {[%clk 0:03:39.4]} 27...
Qc6 {[%clk 0:03:25.1]} 28. Nxb7 {[%clk 0:03:38]} 28... Qxb7 {[%clk 0:03:22.1]}
29. Qc4 {[%clk 0:03:28.8]} 29... Kh7 {[%clk 0:03:16.3]} 30. Rc1 {[%clk
0:03:22.3]} 30... b5 {[%clk 0:03:08.5]} 31. Qe4+ {[%clk 0:03:17.7]} 31... g6
{[%clk 0:03:01.7]} 32. h4 {[%clk 0:03:15.2]} 32... Nf5 {[%clk 0:02:54.5]} 33. h5
{[%clk 0:03:12.1]} 33... Qd7 {[%clk 0:02:44.6]} 34. Qc2 {[%clk 0:02:57.4]} 34...
Qe7 {[%clk 0:02:35.3]} 35. Qc6 {[%clk 0:02:38.4]} 35... Nd4 {[%clk 0:02:18.8]}
36. Qd6 {[%clk 0:02:03.4]} 1-0

[Event "Live Chess"]
[Site "Chess.com"]
[Date "2024.06.02"]
[Round "-"]
[White "TheSmoulderingMaster"]
[Black "lateforthesky"]
[Result "0-1"]
[WhiteElo "1760"]
[BlackElo "2067"]
[TimeControl "300"]
[EndTime "6:39:59 PDT"]
[Termination "lateforthesky won by checkmate"]

1. e4 {[%clk 0:04:57.9]} 1... c5 {[%clk 0:04:58.4]} 2. Nf3 {[%clk 0:04:55.5]}
2... Nf6 {[%clk 0:04:57.3]} 3. d4 {[%clk 0:04:54.7]} 3... Nxe4 {[%clk
0:04:55.9]} 4. Bd3 {[%clk 0:04:52.8]} 4... d5 {[%clk 0:04:54.3]} 5. dxc5 {[%clk
0:04:44.2]} 5... Nxc5 {[%clk 0:04:52.3]} 6. Bb5+ {[%clk 0:04:43.3]} 6... Nc6
{[%clk 0:04:49.9]} 7. Nc3 {[%clk 0:04:40.5]} 7... e6 {[%clk 0:04:48.3]} 8. O-O
{[%clk 0:04:39]} 8... Be7 {[%clk 0:04:47.1]} 9. Re1 {[%clk 0:04:37.4]} 9... O-O
{[%clk 0:04:45.4]} 10. Be3 {[%clk 0:04:34.3]} 10... a6 {[%clk 0:04:41.3]} 11.
Bxc6 {[%clk 0:04:32]} 11... bxc6 {[%clk 0:04:39.8]} 12. Nd4 {[%clk 0:04:30.7]}
12... Bb7 {[%clk 0:04:34.5]} 13. Nce2 {[%clk 0:04:28.4]} 13... Nd7 {[%clk
0:04:31]} 14. c3 {[%clk 0:04:25.4]} 14... Bf6 {[%clk 0:04:26.8]} 15. Nf3 {[%clk
0:04:23]} 15... c5 {[%clk 0:04:22.2]} 16. Nf4 {[%clk 0:04:18.6]} 16... g6 {[%clk
0:04:18.8]} 17. b4 {[%clk 0:04:12.7]} 17... cxb4 {[%clk 0:04:13.5]} 18. cxb4
{[%clk 0:04:11.8]} 18... Bxa1 {[%clk 0:04:06.4]} 19. Qxa1 {[%clk 0:04:09.7]}
19... e5 {[%clk 0:04:05.3]} 20. Nxe5 {[%clk 0:04:07.1]} 20... Nxe5 {[%clk
0:04:01.7]} 21. Qxe5 {[%clk 0:04:05.1]} 21... f6 {[%clk 0:03:52.3]} 22. Qe6+
{[%clk 0:04:00.3]} 22... Rf7 {[%clk 0:03:46.5]} 23. Rd1 {[%clk 0:03:57.7]} 23...
Qd7 {[%clk 0:03:41.4]} 24. Qb6 {[%clk 0:03:47]} 24... Re8 {[%clk 0:03:24.1]} 25.
Qc5 {[%clk 0:03:46.9]} 25... Kg7 {[%clk 0:03:15.8]} 26. Nxd5 {[%clk 0:03:46.8]}
26... Rd8 {[%clk 0:03:02.2]} 27. Nf4 {[%clk 0:03:46.7]} 27... Qxd1# {[%clk
0:02:59.4]} 0-1